[Event "DVM U14 2024"]
[Site "Heidelberg"]
[Date "2024.12.27"]
[Round "1"]
[White "Noennig, Jakob"]
[Black "Mandalka, Justus"]
[Result "1-0"]
[ECO "B35"]
[WhiteElo "2065"]
[BlackElo "2059"]
[Annotator "RC"]
[PlyCount "97"]
[EventDate "2024.12.23"]
[EventType "team-tourn"]
[EventRounds "7"]
[EventCountry "GER"]
[SourceTitle "playchess.com"]
[Source "ChessBase"]
[SourceQuality "1"]
[TimeControl "40/5400+30:1800+30"]

1. e4 {[%emt 0:00:05]} c5 {[%emt 0:00:07]} 2. Nf3 {[%emt 0:00:10]} Nc6 {[%emt 0:00:06]} 3. d4 {[%emt 0:00:09]} cxd4 {[%emt 0:00:05]} 4. Nxd4 {[%emt 0:00:09]} g6 {[%emt 0:00:04]} 5. Nc3 {[%emt 0:00:16]} Bg7 {[%emt 0:00:08]} 6. Be3 {[%emt 0:00:12]} Nf6 {[%emt 0:00:14]} 7. Bc4 {[%emt 0:00:08]} O-O {[%emt 0:00:09]} 8. Bb3 {[%emt 0:00:07]} d5 {[%emt 0:00:53]} 9. exd5 {[%emt 0:01:17]} Na5 {[%emt 0:00:04]} 10. Qf3 {[%emt 0:00:59]} Bg4 {[%emt 0:02:43]} 11. Qg3 {[%emt 0:00:11]} Qc8 {[%emt 0:10:14]} 12. h3 {[%emt 0:05:12]} Bd7 {[%emt 0:00:13]} 13. O-O {[%emt 0:03:02]} Nc4 {[%emt 0:02:26]} 14. Bxc4 {[%emt 0:26:39]} Qxc4 {[%emt 0:00:08]} 15. Qf3 {[%emt 0:01:16]} Rfd8 {[%emt 0:03:15]} 16. Rad1 {[%emt 0:01:38]} Rac8 {[%emt 0:08:29]} 17. Rd2 {[%emt 0:09:59]} Be8 {[%emt 0:01:03]} 18. Nb3 {[%emt 0:01:27]} Nd7 {[%emt 0:09:08]} 19. Bd4 {[%emt 0:07:44]} Ne5 {[%emt 0:02:52]} 20. Qe4 {[%emt 0:04:46]} Qc7 {[%emt 0:01:25]} 21. Bxe5 {[%emt 0:08:21]} Bxe5 {[%emt 0:02:50]} 22. Re1 {[%emt 0:00:47]} Bxc3 {[%emt 0:10:09]} 23. bxc3 {[%emt 0:00:08]} Qxc3 {[%emt 0:00:04]} 24. Qxe7 {[%emt 0:00:08]} Ba4 {[%emt 0:02:56]} 25. Re3 {[%emt 0:02:49]} Qb2 {[%emt 0:02:56]} 26. c4 {[%emt 0:03:47]} Qb1+ {[%emt 0:01:17]} 27. Re1 {[%emt 0:00:08]} Qf5 {[%emt 0:00:31]} 28. g4 {[%emt 0:04:47]} Qd7 {[%emt 0:08:04]} 29. Qf6 {[%emt 0:05:24]} Qd6 {[%emt 0:04:33]} 30. Qxd6 {[%emt 0:03:31]} Rxd6 {[%emt 0:00:01]} 31. c5 {[%emt 0:02:18]} Rdd8 {[%emt 0:00:31]} 32. Rc1 {[%emt 0:02:49]} Kf8 {[%emt 0:02:33]} 33. f4 {[%emt 0:02:00]} Rc7 {[%emt 0:02:34]} 34. Rc4 {[%emt 0:00:49]} Bb5 {[%emt 0:01:20]} 35. Rb4 {[%emt 0:01:04]} a6 {[%emt 0:00:34]} 36. a4 {[%emt 0:00:34]} Be8 {[%emt 0:03:43]} 37. Kf2 {[%emt 0:00:48]} a5 {[%emt 0:01:18]} 38. Rbd4 {[%emt 0:02:07]} Ra8 {[%emt 0:02:08]} 39. d6 {[%emt 0:00:41]} Rd7 {[%emt 0:00:08]} 40. c6 {[%emt 0:00:04]} bxc6 {[%emt 0:00:15]} 41. Nc5 {[%emt 0:30:03]} Rb8 {[%emt 0:30:51]} 42. Re4 {[%emt 0:01:01]} Rbd8 {[%emt 0:02:59]} 43. Nxd7+ {[%emt 0:00:17]} Rxd7 {[%emt 0:00:14]} 44. Re5 {[%emt 0:00:17]} Ra7 {[%emt 0:00:06]} 45. Rc2 {[%emt 0:00:07]} f6 {[%emt 0:01:30]} 46. Re6 {[%emt 0:00:54]} Kf7 {[%emt 0:00:36]} 47. Rce2 {[%emt 0:00:06]} Bd7 {[%emt 0:00:10]} 48. Re7+ {[%emt 0:00:03]} Kg8 {[%emt 0:00:11]} 49. Rb2 {[%emt 0:00:04]} 1-0

[Event "DVM U14 2024"]
[Site "Heidelberg"]
[Date "2024.12.27"]
[Round "1"]
[White "Marcziter, Alex"]
[Black "Meng, Yuxuan"]
[Result "1-0"]
[ECO "B24"]
[WhiteElo "2017"]
[BlackElo "1833"]
[Annotator "RC"]
[PlyCount "91"]
[EventDate "2024.12.23"]
[EventType "team-tourn"]
[EventRounds "7"]
[EventCountry "GER"]
[SourceTitle "playchess.com"]
[Source "ChessBase"]
[SourceQuality "1"]
[TimeControl "40/5400+30:1800+30"]

1. e4 {[%emt 0:00:09]} c5 {[%emt 0:00:07]} 2. Nc3 {[%emt 0:00:12]} e6 {[%emt 0:00:06]} 3. g3 {[%emt 0:00:51]} Nc6 {[%emt 0:01:37]} 4. Bg2 {[%emt 0:01:08]} Nf6 {[%emt 0:02:20]} 5. d3 {[%emt 0:02:24]} a6 {[%emt 0:01:20]} 6. f4 {[%emt 0:02:02]} d5 {[%emt 0:06:15]} 7. e5 {[%emt 0:02:16]} Nd7 {[%emt 0:01:56]} 8. Nf3 {[%emt 0:05:11]} b5 {[%emt 0:01:18]} 9. O-O {[%emt 0:03:00]} Bb7 {[%emt 0:02:26]} 10. f5 {[%emt 0:07:43]} Ndxe5 {[%emt 0:16:25]} 11. fxe6 {[%emt 0:02:03]} f6 {[%emt 0:10:35]} 12. Nxe5 {[%emt 0:06:02]} Nxe5 {[%emt 0:00:11]} 13. Bf4 {[%emt 0:00:36]} Qd6 {[%emt 0:28:13]} 14. Re1 {[%emt 0:17:17]} b4 {[%emt 0:05:53]} 15. Rxe5 {[%emt 0:09:46]} fxe5 {[%emt 0:02:11]} 16. Qh5+ {[%emt 0:00:07]} g6 {[%emt 0:04:03]} 17. Qxe5 {[%emt 0:00:25]} Qxe5 {[%emt 0:01:06]} 18. Bxe5 {[%emt 0:00:11]} Rg8 {[%emt 0:01:15]} 19. Nxd5 {[%emt 0:01:45]} Bxd5 {[%emt 0:00:18]} 20. Bxd5 {[%emt 0:00:10]} Rd8 {[%emt 0:00:17]} 21. Bc4 {[%emt 0:02:10]} Be7 {[%emt 0:02:29]} 22. Bxa6 {[%emt 0:01:44]} Rd5 {[%emt 0:00:55]} 23. Re1 {[%emt 0:01:16]} Bd6 {[%emt 0:04:24]} 24. Bf6 {[%emt 0:02:30]} Be7 {[%emt 0:00:27]} 25. Bb5+ {[%emt 0:07:09]} Kd8 {[%emt 0:00:59]} 26. Be5 {[%emt 0:00:35]} c4 {[%emt 0:03:08]} 27. Bxc4 {[%emt 0:01:14]} Rc5 {[%emt 0:01:14]} 28. Re4 {[%emt 0:04:14]} Rf8 {[%emt 0:00:37]} 29. Rd4+ {[%emt 0:02:09]} Ke8 {[%emt 0:01:17]} 30. Bb3 {[%emt 0:01:36]} Ra5 {[%emt 0:00:50]} 31. Kg2 {[%emt 0:06:41]} Rf5 {[%emt 0:00:49]} 32. Bc7 {[%emt 0:01:46]} Ra7 {[%emt 0:00:35]} 33. Bd6 {[%emt 0:00:40]} Bxd6 {[%emt 0:00:27]} 34. Rxd6 {[%emt 0:00:09]} Rb7 {[%emt 0:00:27]} 35. Ra6 {[%emt 0:04:22]} Ke7 {[%emt 0:00:25]} 36. Ra8 {[%emt 0:00:28]} Rf8 {[%emt 0:00:41]} 37. Rxf8 {[%emt 0:00:21]} Kxf8 {[%emt 0:00:04]} 38. Kf3 {[%emt 0:00:14]} Ke7 {[%emt 0:00:11]} 39. Ke4 {[%emt 0:00:43]} Kd6 {[%emt 0:00:25]} 40. c3 {[%emt 0:00:35]} Rb5 {[%emt 0:01:02]} 41. d4 {[%emt 0:30:33]} Rf5 {[%emt 0:02:34]} 42. cxb4 {[%emt 0:00:00]} Rf2 {[%emt 0:00:36]} 43. b5 {[%emt 0:00:00]} Rxb2 {[%emt 0:00:13]} 44. b6 {[%emt 0:00:00]} Kc6 {[%emt 0:00:45]} 45. Kd3 {[%emt 0:00:00]} Rb1 {[%emt 0:01:00]} 46. e7 {[%emt 0:00:00]} 1-0

[Event "DVM U14 2024"]
[Site "Heidelberg"]
[Date "2024.12.27"]
[Round "1"]
[White "Klein, Levent"]
[Black "Faerber, Anna"]
[Result "1-0"]
[ECO "A65"]
[WhiteElo "1985"]
[BlackElo "1698"]
[Annotator "RC"]
[PlyCount "75"]
[EventDate "2024.12.23"]
[EventType "team-tourn"]
[EventRounds "7"]
[EventCountry "GER"]
[SourceTitle "playchess.com"]
[Source "ChessBase"]
[SourceQuality "1"]
[TimeControl "40/5400+30:1800+30"]

1. d4 {[%emt 0:00:03]} Nf6 {[%emt 0:00:09]} 2. c4 {[%emt 0:00:04]} g6 {[%emt 0:00:05]} 3. Nc3 {[%emt 0:00:24]} Bg7 {[%emt 0:00:10]} 4. e4 {[%emt 0:00:04]} d6 {[%emt 0:00:05]} 5. f3 {[%emt 0:00:04]} O-O {[%emt 0:00:22]} 6. Be3 {[%emt 0:00:03]} c5 {[%emt 0:00:10]} 7. d5 {[%emt 0:11:23]} e6 {[%emt 0:04:24]} 8. Qd2 {[%emt 0:03:51]} exd5 {[%emt 0:03:26]} 9. cxd5 {[%emt 0:03:15]} Re8 {[%emt 0:02:09]} 10. Bd3 {[%emt 0:03:40]} a6 {[%emt 0:02:47]} 11. a4 {[%emt 0:01:34]} Nbd7 {[%emt 0:07:10]} 12. Nh3 {[%emt 0:12:38]} Ne5 {[%emt 0:03:04]} 13. Nf2 {[%emt 0:00:38]} Nxd3+ {[%emt 0:10:04]} 14. Nxd3 {[%emt 0:01:50]} Nd7 {[%emt 0:02:00]} 15. O-O {[%emt 0:04:08]} Ne5 {[%emt 0:02:16]} 16. Nxe5 {[%emt 0:01:05]} Bxe5 {[%emt 0:01:48]} 17. Rab1 {[%emt 0:26:54]} Bd7 {[%emt 0:08:54]} 18. Qc2 {[%emt 0:10:09]} Qc7 {[%emt 0:04:44]} 19. Ne2 {[%emt 0:04:06]} Qa5 {[%emt 0:04:13]} 20. b3 {[%emt 0:02:39]} b5 {[%emt 0:05:10]} 21. Bd2 {[%emt 0:02:11]} Qb6 {[%emt 0:01:42]} 22. Kh1 {[%emt 0:01:16]} Qc7 {[%emt 0:06:17]} 23. Rfc1 {[%emt 0:03:02]} Rec8 {[%emt 0:04:16]} 24. f4 {[%emt 0:01:09]} Bg7 {[%emt 0:00:38]} 25. Bc3 {[%emt 0:01:00]} Bxc3 {[%emt 0:01:42]} 26. Nxc3 {[%emt 0:00:31]} Re8 {[%emt 0:02:53]} 27. Re1 {[%emt 0:02:57]} Rac8 {[%emt 0:05:14]} 28. Qe2 {[%emt 0:01:36]} b4 {[%emt 0:03:47]} 29. Nd1 {[%emt 0:01:10]} c4 {[%emt 0:03:43]} 30. Rc1 {[%emt 0:00:20]} c3 {[%emt 0:00:11]} 31. Qxa6 {[%emt 0:00:25]} c2 {[%emt 0:01:36]} 32. Nf2 {[%emt 0:01:17]} Qc3 {[%emt 0:01:46]} 33. h3 {[%emt 0:00:50]} Qxb3 {[%emt 0:02:14]} 34. Qxd6 {[%emt 0:00:06]} Bxa4 {[%emt 0:00:59]} 35. Ng4 {[%emt 0:00:07]} Red8 {[%emt 0:02:17]} 36. Qf6 {[%emt 0:00:10]} Qc3 {[%emt 0:00:48]} 37. Nh6+ {[%emt 0:00:13]} Kf8 {[%emt 0:00:10]} 38. Qxf7# {[%emt 0:00:36]} 1-0

[Event "DVM U14 2024"]
[Site "Heidelberg"]
[Date "2024.12.27"]
[Round "1"]
[White "Fischermann, Simon"]
[Black "Zhu, Timo Kaiheng"]
[Result "1-0"]
[ECO "B13"]
[WhiteElo "1899"]
[BlackElo "1615"]
[Annotator "NA RC"]
[PlyCount "87"]
[EventDate "2024.12.23"]
[EventType "team-tourn"]
[EventRounds "7"]
[EventCountry "GER"]
[SourceTitle "playchess.com"]
[Source "ChessBase"]
[SourceQuality "1"]
[TimeControl "40/5400+30:1800+30"]

1. e4 {[%emt 0:00:12]} c6 {[%emt 0:00:05]} 2. d4 {[%emt 0:00:18]} d5 {[%emt 0:00:11]} 3. exd5 {[%emt 0:00:22]} cxd5 {[%emt 0:00:11]} 4. Bd3 {[%emt 0:00:06]} Nf6 {[%emt 0:00:56]} 5. c3 {[%emt 0:00:13]} Nc6 {[%emt 0:00:47]} 6. Bf4 {[%emt 0:00:56]} Bg4 {[%emt 0:01:44]} 7. Qb3 {[%emt 0:14:16]} Qd7 {[%emt 0:03:59]} 8. Nd2 {[%emt 0:05:31]} e6 {[%emt 0:03:29]} 9. Ngf3 {[%emt 0:01:40]} a6 {[%emt 0:04:07]} 10. a4 {[%emt 0:10:00] B13: Caro-Kann: Exchange Variation and Panov-Botvinnik Attack.} Be7 {[%emt 0:02:31]} 11. a5 {[%emt 0:03:43]} O-O {[%emt 0:00:50]} 12. O-O {[%emt 0:00:28]} Bd8 {[%emt 0:01:33]} 13. Ne5 {[%emt 0:00:07]} Nxe5 {[%emt 0:00:11]} 14. Bxe5 {[%emt 0:00:12]} Bh5 {[%emt 0:02:27]} 15. Qa4 {[%emt 0:08:45]} Qe7 {[%emt 0:04:40]} 16. Qa3 {[%emt 0:01:27]} Qd7 {[%emt 0:02:36]} 17. Nb3 {[%emt 0:08:01]} Bc7 {[%emt 0:03:27]} 18. Nc5 {[%emt 0:04:01]} Qc6 {[%emt 0:01:00]} 19. Bxf6 {[%emt 0:04:25]} gxf6 {[%emt 0:00:29]} 20. Qa4 {[%emt 0:00:22]} Qd6 {[%emt 0:02:29]} 21. f4 {[%emt 0:00:26]} b5 {[%emt 0:04:39]} 22. axb6 {[%emt 0:00:18]} Bxb6 {[%emt 0:00:53]} 23. Nd7 {[%emt 0:00:22]} Bg6 {[%emt 0:01:01]} 24. Bxg6 {[%emt 0:00:40]} fxg6 {[%emt 0:00:20]} 25. Nxf8 {[%emt 0:00:12]} Qxf8 {[%emt 0:00:35]} 26. Qc6 {[%emt 0:00:10]} Qd8 {[%emt 0:00:47]} 27. Qxe6+ {[%emt 0:00:15]} Kg7 {[%emt 0:00:13]} 28. Rfe1 {[%emt 0:00:14]} Ra7 {[%emt 0:01:14]} 29. Qc6 {[%emt 0:00:12]} a5 {[%emt 0:01:16]} 30. Re6 {[%emt 0:00:12]} Bc7 {[%emt 0:02:06]} 31. Rae1 {[%emt 0:00:06]} Bxf4 {[%emt 0:00:51]} 32. g3 {[%emt 0:01:08]} Bb8 {[%emt 0:01:22]} 33. Re8 {[%emt 0:00:15]} Qd6 {[%emt 0:00:34]} 34. Qxd6 {[%emt 0:00:17]} Bxd6 {[%emt 0:00:07]} 35. Rd8 {[%emt 0:00:05]} Bf8 {[%emt 0:01:03]} 36. Rxd5 {[%emt 0:00:46]} Rb7 {[%emt 0:01:00]} 37. Re2 {[%emt 0:00:21]} Ra7 {[%emt 0:00:47]} 38. c4 {[%emt 0:00:46]} Bb4 {[%emt 0:00:41]} 39. c5 {[%emt 0:00:14]} Rc7 {[%emt 0:00:35]} 40. Re6 {[%emt 0:00:32]} Kf7 {[%emt 0:00:37]} 41. Rb6 {[%emt 0:30:21]} g5 {[%emt 0:31:28]} 42. Rdd6 {[%emt 0:00:31]} f5 {[%emt 0:01:27]} 43. Rf6+ {[%emt 0:00:11]} Kg7 {[%emt 0:00:20]} 44. Rxf5 $18 {[%emt 0:00:06]} 1-0

[Event "DVM U14 2024"]
[Site "Heidelberg"]
[Date "2024.12.27"]
[Round "1"]
[White "Rodriguez Klasen, Ennio"]
[Black "Roessler, Leo"]
[Result "1/2-1/2"]
[ECO "B07"]
[WhiteElo "1870"]
[BlackElo "1589"]
[Annotator "NA RC"]
[PlyCount "79"]
[EventDate "2024.12.23"]
[EventType "team-tourn"]
[EventRounds "7"]
[EventCountry "GER"]
[SourceTitle "playchess.com"]
[Source "ChessBase"]
[SourceQuality "1"]
[TimeControl "40/5400+30:1800+30"]

1. e4 {[%emt 0:00:03]} d6 {[%emt 0:00:30]} 2. d4 {[%emt 0:00:04]} Nf6 {[%emt 0:00:24]} 3. Nc3 {[%emt 0:00:08]} g6 {[%emt 0:00:37]} 4. f3 {[%emt 0:01:24]} Bg7 {[%emt 0:01:20]} 5. Be3 {[%emt 0:00:41]} c6 {[%emt 0:02:51]} 6. a4 {[%emt 0:02:28]} a5 {[%emt 0:13:07]} 7. Qd2 {[%emt 0:07:26]} Nbd7 {[%emt 0:08:57]} 8. Bd3 {[%emt 0:04:17]} e5 {[%emt 0:03:02]} 9. Nge2 {[%emt 0:08:28]} exd4 {[%emt 0:04:21]} 10. Nxd4 {[%emt 0:03:05]} Ne5 {[%emt 0:03:26]} 11. O-O-O {[%emt 0:06:50]} O-O {[%emt 0:11:26]} 12. Be2 {[%emt 0:08:13]} Qc7 {[%emt 0:06:58]} 13. h3 {[%emt 0:09:19]} Re8 {[%emt 0:09:55]} 14. g4 {[%emt 0:03:52]} b6 {[%emt 0:06:19]} 15. g5 {[%emt 0:19:01]} Nh5 {[%emt 0:01:48]} 16. Rhg1 {[%emt 0:02:29]} Ba6 {[%emt 0:02:46]} 17. f4 {[%emt 0:02:03]} Nc4 {[%emt 0:04:14]} 18. Bxc4 {[%emt 0:00:09]} Bxc4 {[%emt 0:00:13]} 19. f5 {[%emt 0:02:06]} Rad8 {[%emt 0:07:17]} 20. b3 {[%emt 0:03:14]} Ba6 {[%emt 0:00:16]} 21. f6 {[%emt 0:01:05]} Bf8 {[%emt 0:00:22]} 22. Qh2 {[%emt 0:04:25]} Qb7 {[%emt 0:03:37]} 23. Rge1 {[%emt 0:02:56]} d5 {[%emt 0:03:08]} 24. exd5 {[%emt 0:02:50]} cxd5 {[%emt 0:00:08]} 25. Ncb5 {[%emt 0:01:24]} Bxb5 {[%emt 0:00:44]} 26. Nxb5 {[%emt 0:01:01]} Rd7 {[%emt 0:00:40]} 27. Bd4 {[%emt 0:01:18]} Rc8 {[%emt 0:01:24]} 28. Re3 {[%emt 0:01:19]} h6 {[%emt 0:01:52]} 29. h4 {[%emt 0:00:45]} Kh7 {[%emt 0:00:11]} 30. Rde1 {[%emt 0:01:01]} Bc5 {[%emt 0:01:13]} 31. Bxc5 {[%emt 0:00:47]} Rxc5 {[%emt 0:00:44]} 32. Re7 {[%emt 0:01:11]} Kg8 {[%emt 0:01:09]} 33. Re8+ {[%emt 0:00:50]} Kh7 {[%emt 0:00:07]} 34. R8e7 {[%emt 0:00:12]} Kg8 {[%emt 0:00:09]} 35. Nd6 {[%emt 0:00:51]} Qc7 {[%emt 0:01:08]} 36. Nxf7 {[%emt 0:00:42]} Qxh2 {[%emt 0:00:09]} 37. Nxh6+ {[%emt 0:00:10]} Kh8 {[%emt 0:00:23]} 38. Nf7+ {[%emt 0:00:46]} Kg8 {[%emt 0:01:05]} 39. Nh6+ {[%emt 0:00:33]} Kh8 {[%emt 0:00:21]} 40. Re8+ {[%emt 0:00:27]} 1/2-1/2

[Event "DVM U14 2024"]
[Site "Heidelberg"]
[Date "2024.12.27"]
[Round "1"]
[White "Retzlaff, Kian"]
[Black "Kovalyov, Dima"]
[Result "1-0"]
[ECO "B01"]
[WhiteElo "1826"]
[BlackElo "1829"]
[Annotator "NA RC"]
[PlyCount "81"]
[EventDate "2024.12.23"]
[EventType "team-tourn"]
[EventRounds "7"]
[EventCountry "GER"]
[SourceTitle "playchess.com"]
[Source "ChessBase"]
[SourceQuality "1"]
[TimeControl "40/5400+30:1800+30"]

1. e4 {[%emt 0:00:02]} d5 {[%emt 0:00:06]} 2. exd5 {[%emt 0:00:04]} Nf6 {[%emt 0:00:02]} 3. d4 {[%emt 0:00:08]} Nxd5 {[%emt 0:00:03]} 4. c4 {[%emt 0:01:25]} Nf6 {[%emt 0:00:03]} 5. Nc3 {[%emt 0:01:28]} Bf5 {[%emt 0:00:06]} 6. Nf3 {[%emt 0:02:27]} e6 {[%emt 0:01:48]} 7. Be2 {[%emt 0:03:49]} Be7 {[%emt 0:05:52]} 8. O-O {[%emt 0:02:37]} O-O {[%emt 0:00:05]} 9. Nh4 {[%emt 0:05:29]} Bg4 {[%emt 0:02:34]} 10. Bxg4 {[%emt 0:01:55]} Nxg4 {[%emt 0:00:05]} 11. Qxg4 {[%emt 0:07:19]} Bxh4 {[%emt 0:00:10]} 12. Bf4 {[%emt 0:11:51]} Bf6 {[%emt 0:02:16]} 13. Rad1 {[%emt 0:02:47]} Na6 {[%emt 0:08:22]} 14. Rfe1 {[%emt 0:15:36]} Nb4 {[%emt 0:05:46]} 15. Re2 {[%emt 0:15:00]} Nc6 {[%emt 0:07:15]} 16. d5 {[%emt 0:12:16]} Nd4 {[%emt 0:04:01]} 17. Re4 {[%emt 0:02:12]} Re8 {[%emt 0:03:09]} 18. Be5 {[%emt 0:05:30]} Bxe5 {[%emt 0:02:10]} 19. Rxe5 {[%emt 0:00:39]} f6 {[%emt 0:00:44]} 20. Ree1 {[%emt 0:01:28]} e5 {[%emt 0:00:52]} 21. f4 {[%emt 0:01:06]} exf4 {[%emt 0:02:21]} 22. Qxf4 {[%emt 0:01:16]} Nc2 {[%emt 0:01:17]} 23. Rxe8+ {[%emt 0:01:47]} Qxe8 {[%emt 0:00:06]} 24. Qxc7 {[%emt 0:01:54]} Qe3+ {[%emt 0:00:39]} 25. Kh1 {[%emt 0:00:16]} Re8 {[%emt 0:00:11]} 26. Qg3 {[%emt 0:00:51]} Qc5 {[%emt 0:02:19]} 27. Qf4 {[%emt 0:01:31]} Nb4 {[%emt 0:04:50]} 28. h3 {[%emt 0:00:54]} Nd3 {[%emt 0:02:56]} 29. Rxd3 {[%emt 0:00:47]} Re1+ {[%emt 0:00:04]} 30. Kh2 {[%emt 0:00:04]} Qg1+ {[%emt 0:00:09]} 31. Kg3 {[%emt 0:00:04]} Re5 {[%emt 0:01:00]} 32. h4 {[%emt 0:01:11]} g5 {[%emt 0:01:09]} 33. Qg4 {[%emt 0:00:42]} Kf7 {[%emt 0:04:25]} 34. h5 {[%emt 0:00:20]} h6 {[%emt 0:02:17]} 35. Rf3 {[%emt 0:00:25]} Ke7 {[%emt 0:01:48]} 36. d6+ {[%emt 0:00:29]} Kxd6 {[%emt 0:00:56]} 37. Rxf6+ {[%emt 0:00:02]} Ke7 {[%emt 0:00:33]} 38. Nd5+ {[%emt 0:00:38]} Kd8 {[%emt 0:01:52]} 39. Rf8+ {[%emt 0:00:13]} Re8 {[%emt 0:00:06]} 40. Rxe8+ {[%emt 0:00:05]} Kxe8 {[%emt 0:00:05]} 41. Qe6+ {[%emt 0:30:04]} 1-0

[Event "DVM U14 2024"]
[Site "Heidelberg"]
[Date "2024.12.27"]
[Round "1"]
[White "Arne, Jonas"]
[Black "Yan, Haichen"]
[Result "1-0"]
[ECO "B24"]
[WhiteElo "1823"]
[BlackElo "1732"]
[Annotator "NA RC"]
[PlyCount "217"]
[EventDate "2024.12.23"]
[EventType "team-tourn"]
[EventRounds "7"]
[EventCountry "GER"]
[SourceTitle "playchess.com"]
[Source "ChessBase"]
[SourceQuality "1"]
[TimeControl "40/5400+30:1800+30"]

1. e4 {[%emt 0:00:02]} c5 {[%emt 0:00:05]} 2. Nc3 {[%emt 0:00:01]} e6 {[%emt 0:00:12]} 3. Nge2 {[%emt 0:00:07]} Nc6 {[%emt 0:01:58]} 4. g3 {[%emt 0:00:18]} Nf6 {[%emt 0:02:28]} 5. Bg2 {[%emt 0:00:09]} d5 {[%emt 0:05:22]} 6. exd5 {[%emt 0:00:53]} exd5 {[%emt 0:00:12]} 7. d4 {[%emt 0:00:04]} Be6 {[%emt 0:10:50]} 8. Bg5 {[%emt 0:00:54]} h6 {[%emt 0:18:32]} 9. Bxf6 {[%emt 0:02:01]} Qxf6 {[%emt 0:00:09]} 10. Nxd5 {[%emt 0:01:41]} Bxd5 {[%emt 0:00:18]} 11. Bxd5 {[%emt 0:00:08]} Nxd4 {[%emt 0:03:26]} 12. Nxd4 {[%emt 0:00:50]} cxd4 {[%emt 0:02:55]} 13. Qe2+ {[%emt 0:00:33]} Qe7 {[%emt 0:05:04]} 14. Qxe7+ {[%emt 0:00:12]} Kxe7 {[%emt 0:00:22]} 15. O-O-O {[%emt 0:00:24]} Rb8 {[%emt 0:10:23]} 16. Rxd4 {[%emt 0:00:34]} g5 {[%emt 0:02:23]} 17. Re1+ {[%emt 0:02:25]} Kf6 {[%emt 0:00:30]} 18. f4 {[%emt 0:00:25]} Kg6 {[%emt 0:06:54]} 19. Bc4 {[%emt 0:07:00]} Bc5 {[%emt 0:07:16]} 20. Rd7 {[%emt 0:01:10]} Rhf8 {[%emt 0:01:19]} 21. Re5 {[%emt 0:09:07]} Bg1 {[%emt 0:04:56]} 22. Ree7 {[%emt 0:01:44]} Bxh2 {[%emt 0:02:34]} 23. Bxf7+ {[%emt 0:01:28]} Kf6 {[%emt 0:03:03]} 24. Re6+ {[%emt 0:03:44]} Kf5 {[%emt 0:00:55]} 25. Rxh6 {[%emt 0:01:55]} Bxg3 {[%emt 0:00:27]} 26. fxg5 {[%emt 0:00:26]} Bf4+ {[%emt 0:01:04]} 27. Kb1 {[%emt 0:04:05]} Rbd8 {[%emt 0:02:03]} 28. Rxd8 {[%emt 0:03:43]} Rxd8 {[%emt 0:00:06]} 29. a3 {[%emt 0:00:49]} Bxg5 {[%emt 0:01:07]} 30. Rh7 {[%emt 0:00:51]} b6 {[%emt 0:00:53]} 31. Bc4 {[%emt 0:01:15]} a5 {[%emt 0:00:23]} 32. Bd3+ {[%emt 0:02:38]} Ke6 {[%emt 0:01:48]} 33. Ka2 {[%emt 0:01:30]} Be3 {[%emt 0:01:33]} 34. Kb3 {[%emt 0:01:46]} Rd4 {[%emt 0:01:29]} 35. Rh3 {[%emt 0:00:00]} Bg5 {[%emt 0:01:34]} 36. Rg3 {[%emt 0:00:59]} Kf6 {[%emt 0:00:17]} 37. c3 {[%emt 0:01:49]} Rd6 {[%emt 0:02:22]} 38. Be4 {[%emt 0:05:49]} Bf4 {[%emt 0:00:26]} 39. Rf3 {[%emt 0:01:20]} Ke5 {[%emt 0:00:19]} 40. Bb7 {[%emt 0:00:27]} Rf6 {[%emt 0:01:04]} 41. Rh3 {[%emt 0:30:51]} Rh6 {[%emt 0:30:22]} 42. Rf3 {[%emt 0:00:43]} Rf6 {[%emt 0:00:18]} 43. Rf2 {[%emt 0:00:17]} Kd6 {[%emt 0:00:00]} 44. Kc4 {[%emt 0:00:00]} Rf5 {[%emt 0:00:00]} 45. Rf1 {[%emt 0:00:00]} Rc5+ {[%emt 0:00:00]} 46. Kd4 {[%emt 0:00:00]} Be5+ {[%emt 0:00:00]} 47. Kd3 {[%emt 0:00:00]} Rc7 {[%emt 0:00:00]} 48. Ba6 {[%emt 0:00:00]} Rc5 {[%emt 0:00:00]} 49. Rh1 {[%emt 0:00:00]} Rd5+ {[%emt 0:00:00]} 50. Ke4 {[%emt 0:00:00]} Bg7 {[%emt 0:00:00]} 51. Rg1 {[%emt 0:00:00]} Re5+ {[%emt 0:00:00]} 52. Kd3 {[%emt 0:00:00]} Bh6 {[%emt 0:00:00]} 53. Rg6+ {[%emt 0:00:00]} Re6 {[%emt 0:00:00]} 54. Rg8 {[%emt 0:00:00]} Bc1 {[%emt 0:00:00]} 55. Rb8 {[%emt 0:00:00]} Kc7 {[%emt 0:00:00]} 56. Rc8+ {[%emt 0:00:00]} Kd7 {[%emt 0:00:00]} 57. Kc2 {[%emt 0:00:00]} Bf4 {[%emt 0:00:00]} 58. Rf8 {[%emt 0:00:00]} Bd6 {[%emt 0:00:00]} 59. Rf7+ {[%emt 0:00:00]} Re7 {[%emt 0:00:00]} 60. Rf6 {[%emt 0:00:00]} Bc5 {[%emt 0:00:00]} 61. Bb5+ {[%emt 0:00:00]} Kc7 {[%emt 0:00:00]} 62. Rc6+ {[%emt 0:00:00]} Kb7 {[%emt 0:00:00]} 63. Kb3 {[%emt 0:00:00]} Re4 {[%emt 0:00:00]} 64. Rg6 {[%emt 0:00:00]} Kc7 {[%emt 0:00:00]} 65. Ba6 {[%emt 0:00:00]} Rf4 {[%emt 0:00:00]} 66. Rg2 {[%emt 0:00:00]} Kd6 {[%emt 0:00:00]} 67. Rd2+ {[%emt 0:00:00]} Kc7 {[%emt 0:00:00]} 68. Be2 {[%emt 0:00:00]} Rf2 {[%emt 0:00:40]} 69. Ka4 {[%emt 0:00:00]} Be3 {[%emt 0:01:17]} 70. Rc2 {[%emt 0:00:00]} Kd6 {[%emt 0:01:09]} 71. b4 {[%emt 0:00:00]} axb4 {[%emt 0:01:02]} 72. cxb4 {[%emt 0:00:00]} Rg2 {[%emt 0:02:07]} 73. Kb5 {[%emt 0:00:01]} Rg5+ {[%emt 0:00:08]} 74. Ka6 {[%emt 0:00:17]} Rg2 {[%emt 0:00:17]} 75. a4 {[%emt 0:00:33]} Rf2 {[%emt 0:00:32]} 76. b5 {[%emt 0:00:52]} Kd5 {[%emt 0:04:05]} 77. a5 {[%emt 0:03:09]} bxa5 {[%emt 0:02:25]} 78. Kxa5 {[%emt 0:00:22]} Rf6 {[%emt 0:00:54]} 79. Kb4 {[%emt 0:01:27]} Ke5 {[%emt 0:01:04]} 80. Bh5 {[%emt 0:01:33]} Rd6 {[%emt 0:01:27]} 81. Be8 {[%emt 0:00:23]} Rb6 {[%emt 0:00:01]} 82. Ka5 {[%emt 0:00:19]} Rb8 {[%emt 0:00:09]} 83. Re2 {[%emt 0:01:28]} Kf4 {[%emt 0:00:33]} 84. Bc6 {[%emt 0:00:36]} Bg1 {[%emt 0:00:24]} 85. Re7 {[%emt 0:00:47]} Bc5 {[%emt 0:00:46]} 86. Rd7 {[%emt 0:00:24]} Kg3 {[%emt 0:00:21]} 87. Bb7 {[%emt 0:00:35]} Bf2 {[%emt 0:01:13]} 88. Rg7+ {[%emt 0:00:26]} Kh4 {[%emt 0:00:08]} 89. Ka6 {[%emt 0:00:31]} Rd8 {[%emt 0:00:34]} 90. Rf7 {[%emt 0:00:23]} Rd6+ {[%emt 0:00:44]} 91. Bc6 {[%emt 0:00:16]} Be3 {[%emt 0:00:20]} 92. Kb7 {[%emt 0:00:28]} Rd2 {[%emt 0:00:36]} 93. Rf3 {[%emt 0:00:21]} Bc5 {[%emt 0:00:17]} 94. Rb3 {[%emt 0:00:17]} Rf2 {[%emt 0:00:24]} 95. b6 {[%emt 0:00:31]} Bxb6 {[%emt 0:00:35]} 96. Kxb6 {[%emt 0:00:10]} Kg5 {[%emt 0:00:24]} 97. Kc5 {[%emt 0:00:15]} Rc2+ {[%emt 0:00:09]} 98. Kd6 {[%emt 0:00:11]} Rd2+ {[%emt 0:00:07]} 99. Ke5 {[%emt 0:00:08]} Rc2 {[%emt 0:00:13]} 100. Bd5 {[%emt 0:01:09]} Re2+ {[%emt 0:00:21]} 101. Be4 {[%emt 0:00:08]} Kg4 {[%emt 0:00:16]} 102. Rb8 {[%emt 0:01:29]} Kg3 {[%emt 0:00:39]} 103. Rg8+ {[%emt 0:00:14]} Kf2 {[%emt 0:00:26]} 104. Kf4 {[%emt 0:00:08]} Ke1 {[%emt 0:00:31]} 105. Bf3 {[%emt 0:00:26]} Re7 {[%emt 0:00:33]} 106. Rd8 {[%emt 0:00:20]} Rf7+ {[%emt 0:00:26]} 107. Kg3 {[%emt 0:00:30]} Rg7+ {[%emt 0:00:21]} 108. Bg4 {[%emt 0:00:18]} Rxg4+ {[%emt 0:01:46]} 109. Kxg4 {[%emt 0:00:06]} 1-0